{"text_format":"1","workbook":"xlsx","n_sheets":2,"sheets":["כרטיסי אשראי","נתונים"],"not_rendered":{"charts":0,"images":0,"macros":1,"external_links":0,"defined_names":3,"comments":0,"pivot_tables":0},"unopened":[],"bounds":{"document_bytes":16777216,"sheet_cells":100000,"rows_first":2000,"rows_last":500,"rows_between":2000,"halvings":0,"cell_chars":16384,"cell_head_chars":4096},"cells_cut":0,"cells_raw":0,"read":"whole","date_system":"1900"}

{"sheet":"כרטיסי אשראי","index":0,"n_rows":374,"n_cols":10,"rows_kept":374,"cut":false,"hidden":false,"merged":[]}
["תאריך עסקה","שם בית העסק","סכום חיוב","עמודה1","קטגוריה",null,null,null,"קטגוריה","סה\"כ"]
[null,null,null,null,{"$f":"VLOOKUP(B2,נתונים!C:D,2,FALSE)","v":{"$error":"#N/A"}},null,null,null,{"$f":"_xlfn.UNIQUE(טבלה3[קטגוריה])","v":"קניות"},{"$f":"SUMIF($E:$E,I2,$C:$C)","v":0}]
[null,null,null,"",{"$f":"VLOOKUP(B3,נתונים!C:D,2,FALSE)","v":{"$error":"#N/A"}},null,null,null,"ביגוד",{"$f":"SUMIF($E:$E,I3,$C:$C)","v":0}]
[null,null,null,null,{"$f":"VLOOKUP(B4,נתונים!C:D,2,FALSE)","v":{"$error":"#N/A"}},null,null,null,0,0]
[null,null,null,null,{"$f":"VLOOKUP(B5,נתונים!C:D,2,FALSE)","v":{"$error":"#N/A"}},null,null,null,null,0]
[null,null,null,null,{"$f":"VLOOKUP(B6,נתונים!C:D,2,FALSE)","v":{"$error":"#N/A"}},null,null,null,null,0]
[null,null,null,"",{"$f":"VLOOKUP(B7,נתונים!C:D,2,FALSE)","v":{"$error":"#N/A"}},null,null,null,null,0]
[null,null,null,null,{"$f":"VLOOKUP(B8,נתונים!C:D,2,FALSE)","v":{"$error":"#N/A"}},null,null,null,null,0]
[null,null,null,null,{"$f":"VLOOKUP(B9,נתונים!C:D,2,FALSE)","v":{"$error":"#N/A"}},null,null,null,null,0]
[null,null,null,"",{"$f":"VLOOKUP(B10,נתונים!C:D,2,FALSE)","v":{"$error":"#N/A"}},null,null,null,null,0]
[null,null,null,"",{"$f":"VLOOKUP(B11,נתונים!C:D,2,FALSE)","v":{"$error":"#N/A"}},null,null,null,null,0]
[null,null,null,"",{"$f":"VLOOKUP(B12,נתונים!C:D,2,FALSE)","v":{"$error":"#N/A"}},null,null,null,null,0]
[null,null,null,null,{"$f":"VLOOKUP(B13,נתונים!C:D,2,FALSE)","v":{"$error":"#N/A"}},null,null,null,null,0]
[null,null,null,null,{"$f":"VLOOKUP(B14,נתונים!C:D,2,FALSE)","v":{"$error":"#N/A"}},null,null,null,null,0]
[null,null,null,null,{"$f":"VLOOKUP(B15,נתונים!C:D,2,FALSE)","v":{"$error":"#N/A"}},null,null,null,null,0]
[null,null,null,null,{"$f":"VLOOKUP(B16,נתונים!C:D,2,FALSE)","v":{"$error":"#N/A"}},null,null,null,null,0]
[null,null,null,null,{"$f":"VLOOKUP(B17,נתונים!C:D,2,FALSE)","v":{"$error":"#N/A"}},null,null,null,null,0]
[null,null,null,null,{"$f":"VLOOKUP(B18,נתונים!C:D,2,FALSE)","v":{"$error":"#N/A"}},null,null,null,null,0]
[null,null,null,null,{"$f":"VLOOKUP(B19,נתונים!C:D,2,FALSE)","v":{"$error":"#N/A"}},null,null,null,null,0]
[null,null,null,null,{"$f":"VLOOKUP(B20,נתונים!C:D,2,FALSE)","v":{"$error":"#N/A"}},null,null,null,null,0]
[null,null,null,null,{"$f":"VLOOKUP(B21,נתונים!C:D,2,FALSE)","v":{"$error":"#N/A"}},null,null,null,null,0]
[null,null,null,null,{"$f":"VLOOKUP(B22,נתונים!C:D,2,FALSE)","v":{"$error":"#N/A"}},null,null,null,null,0]
[null,null,null,null,{"$f":"VLOOKUP(B23,נתונים!C:D,2,FALSE)","v":{"$error":"#N/A"}},null,null,null,null,0]
[null,null,null,null,{"$f":"VLOOKUP(B24,נתונים!C:D,2,FALSE)","v":{"$error":"#N/A"}},null,null,null,null,0]
[null,null,null,null,{"$f":"VLOOKUP(B25,נתונים!C:D,2,FALSE)","v":{"$error":"#N/A"}},null,null,null,null,0]
[null,null,null,"",{"$f":"VLOOKUP(B26,נתונים!C:D,2,FALSE)","v":{"$error":"#N/A"}},null,null,null,null,0]
[null,null,null,null,{"$f":"VLOOKUP(B27,נתונים!C:D,2,FALSE)","v":{"$error":"#N/A"}},null,null,null,null,0]
[null,null,null,null,{"$f":"VLOOKUP(B28,נתונים!C:D,2,FALSE)","v":{"$error":"#N/A"}},null,null,null,null,0]
[null,null,null,null,{"$f":"VLOOKUP(B29,נתונים!C:D,2,FALSE)","v":{"$error":"#N/A"}},null,null,null,null,0]
[null,null,null,null,{"$f":"VLOOKUP(B30,נתונים!C:D,2,FALSE)","v":{"$error":"#N/A"}},null,null,null,null,0]
[null,null,null,null,{"$f":"VLOOKUP(B31,נתונים!C:D,2,FALSE)","v":{"$error":"#N/A"}},null,null,null,null,0]
[null,null,null,null,{"$f":"VLOOKUP(B32,נתונים!C:D,2,FALSE)","v":{"$error":"#N/A"}},null,null,null,null,0]
[null,null,null,null,{"$f":"VLOOKUP(B33,נתונים!C:D,2,FALSE)","v":{"$error":"#N/A"}},null,null,null,null,0]
[null,null,null,null,{"$f":"VLOOKUP(B34,נתונים!C:D,2,FALSE)","v":{"$error":"#N/A"}},null,null,null,null,0]
[null,null,null,null,{"$f":"VLOOKUP(B35,נתונים!C:D,2,FALSE)","v":{"$error":"#N/A"}},null,null,null,null,{"$f":"SUMIF($E:$E,I35,$C:$C)","v":0}]
[null,null,null,null,{"$f":"VLOOKUP(B36,נתונים!C:D,2,FALSE)","v":{"$error":"#N/A"}},null,null,null,null,0]
[null,null,null,null,{"$f":"VLOOKUP(B37,נתונים!C:D,2,FALSE)","v":{"$error":"#N/A"}},null,null,null,null,0]
[null,null,null,null,{"$f":"VLOOKUP(B38,נתונים!C:D,2,FALSE)","v":{"$error":"#N/A"}},null,null,null,null,0]
[null,null,null,null,{"$f":"VLOOKUP(B39,נתונים!C:D,2,FALSE)","v":{"$error":"#N/A"}},null,null,null,null,0]
[null,null,null,null,{"$f":"VLOOKUP(B40,נתונים!C:D,2,FALSE)","v":{"$error":"#N/A"}},null,null,null,null,0]
[null,null,null,null,{"$f":"VLOOKUP(B41,נתונים!C:D,2,FALSE)","v":{"$error":"#N/A"}},null,null,null,null,0]
[null,null,null,null,{"$f":"VLOOKUP(B42,נתונים!C:D,2,FALSE)","v":{"$error":"#N/A"}},null,null,null,null,0]
[null,null,null,null,{"$f":"VLOOKUP(B43,נתונים!C:D,2,FALSE)","v":{"$error":"#N/A"}},null,null,null,null,0]
[null,null,null,"סכום חיוב",{"$f":"VLOOKUP(B44,נתונים!C:D,2,FALSE)","v":{"$error":"#N/A"}},null,null,null,null,0]
[null,null,null,1125,{"$f":"VLOOKUP(B45,נתונים!C:D,2,FALSE)","v":{"$error":"#N/A"}},null,null,null,null,0]
[null,null,null,30,{"$f":"VLOOKUP(B46,נתונים!C:D,2,FALSE)","v":{"$error":"#N/A"}},null,null,null,null,0]
[null,null,null,50,{"$f":"VLOOKUP(B47,נתונים!C:D,2,FALSE)","v":{"$error":"#N/A"}},null,null,null,null,0]
[null,null,null,50,{"$f":"VLOOKUP(B48,נתונים!C:D,2,FALSE)","v":{"$error":"#N/A"}},null,null,null,null,0]
[null,null,null,50,{"$f":"VLOOKUP(B49,נתונים!C:D,2,FALSE)","v":{"$error":"#N/A"}},null,null,null,null,0]
[null,null,null,20.16,{"$f":"VLOOKUP(B50,נתונים!C:D,2,FALSE)","v":{"$error":"#N/A"}},null,null,null,null,0]
[null,null,null,9,{"$f":"VLOOKUP(B51,נתונים!C:D,2,FALSE)","v":{"$error":"#N/A"}},null,null,null,null,0]
[null,null,null,326.69,{"$f":"VLOOKUP(B52,נתונים!C:D,2,FALSE)","v":{"$error":"#N/A"}},null,null,null,null,0]
[null,null,null,32.31,{"$f":"VLOOKUP(B53,נתונים!C:D,2,FALSE)","v":{"$error":"#N/A"}},null,null,null,null,0]
[null,null,null,60.48,{"$f":"VLOOKUP(B54,נתונים!C:D,2,FALSE)","v":{"$error":"#N/A"}},null,null,null,null,0]
[null,null,null,58.15,{"$f":"VLOOKUP(B55,נתונים!C:D,2,FALSE)","v":{"$error":"#N/A"}},null,null,null,null,0]
[null,null,null,103.89,{"$f":"VLOOKUP(B56,נתונים!C:D,2,FALSE)","v":{"$error":"#N/A"}},null,null,null,null,0]
[null,null,null,580,{"$f":"VLOOKUP(B57,נתונים!C:D,2,FALSE)","v":{"$error":"#N/A"}},null,null,null,null,0]
[null,null,null,62.98,{"$f":"VLOOKUP(B58,נתונים!C:D,2,FALSE)","v":{"$error":"#N/A"}},null,null,null,null,0]
[null,null,null,217.24,{"$f":"VLOOKUP(B59,נתונים!C:D,2,FALSE)","v":{"$error":"#N/A"}},null,null,null,null,0]
[null,null,null,261.98,{"$f":"VLOOKUP(B60,נתונים!C:D,2,FALSE)","v":{"$error":"#N/A"}},null,null,null,null,0]
[null,null,null,54,{"$f":"VLOOKUP(B61,נתונים!C:D,2,FALSE)","v":{"$error":"#N/A"}},null,null,null,null,0]
[null,null,null,48.28,{"$f":"VLOOKUP(B62,נתונים!C:D,2,FALSE)","v":{"$error":"#N/A"}},null,null,null,null,0]
[null,null,null,129.56,{"$f":"VLOOKUP(B63,נתונים!C:D,2,FALSE)","v":{"$error":"#N/A"}},null,null,null,null,0]
[null,null,null,50,{"$f":"VLOOKUP(B64,נתונים!C:D,2,FALSE)","v":{"$error":"#N/A"}},null,null,null,null,0]
[null,null,null,30,{"$f":"VLOOKUP(B65,נתונים!C:D,2,FALSE)","v":{"$error":"#N/A"}},null,null,null,null,0]
[null,null,null,183,{"$f":"VLOOKUP(B66,נתונים!C:D,2,FALSE)","v":{"$error":"#N/A"}},null,null,null,null,{"$f":"SUMIF($E:$E,I66,$C:$C)","v":0}]
[null,null,null,null,{"$f":"VLOOKUP(B67,נתונים!C:D,2,FALSE)","v":{"$error":"#N/A"}},null,null,null,null,0]
[null,null,null,null,{"$f":"VLOOKUP(B68,נתונים!C:D,2,FALSE)","v":{"$error":"#N/A"}},null,null,null,null,0]
[null,null,null,null,{"$f":"VLOOKUP(B69,נתונים!C:D,2,FALSE)","v":{"$error":"#N/A"}},null,null,null,null,0]
[null,null,null,null,{"$f":"VLOOKUP(B70,נתונים!C:D,2,FALSE)","v":{"$error":"#N/A"}},null,null,null,null,0]
[null,null,null,null,{"$f":"VLOOKUP(B71,נתונים!C:D,2,FALSE)","v":{"$error":"#N/A"}},null,null,null,null,0]
[null,null,null,null,{"$f":"VLOOKUP(B72,נתונים!C:D,2,FALSE)","v":{"$error":"#N/A"}},null,null,null,null,0]
[null,null,null,null,{"$f":"VLOOKUP(B73,נתונים!C:D,2,FALSE)","v":{"$error":"#N/A"}},null,null,null,null,0]
[null,null,null,null,{"$f":"VLOOKUP(B74,נתונים!C:D,2,FALSE)","v":{"$error":"#N/A"}},null,null,null,null,0]
[null,null,null,null,{"$f":"VLOOKUP(B75,נתונים!C:D,2,FALSE)","v":{"$error":"#N/A"}},null,null,null,null,0]
[null,null,null,null,{"$f":"VLOOKUP(B76,נתונים!C:D,2,FALSE)","v":{"$error":"#N/A"}},null,null,null,null,0]
[null,null,null,null,{"$f":"VLOOKUP(B77,נתונים!C:D,2,FALSE)","v":{"$error":"#N/A"}},null,null,null,null,0]
[null,null,null,null,{"$f":"VLOOKUP(B78,נתונים!C:D,2,FALSE)","v":{"$error":"#N/A"}},null,null,null,null,0]
[null,null,null,null,{"$f":"VLOOKUP(B79,נתונים!C:D,2,FALSE)","v":{"$error":"#N/A"}},null,null,null,null,0]
[null,null,null,null,{"$f":"VLOOKUP(B80,נתונים!C:D,2,FALSE)","v":{"$error":"#N/A"}},null,null,null,null,0]
[null,null,null,null,{"$f":"VLOOKUP(B81,נתונים!C:D,2,FALSE)","v":{"$error":"#N/A"}},null,null,null,null,0]
[null,null,null,null,{"$f":"VLOOKUP(B82,נתונים!C:D,2,FALSE)","v":{"$error":"#N/A"}},null,null,null,null,0]
[null,null,null,null,{"$f":"VLOOKUP(B83,נתונים!C:D,2,FALSE)","v":{"$error":"#N/A"}},null,null,null,null,0]
[null,null,null,null,{"$f":"VLOOKUP(B84,נתונים!C:D,2,FALSE)","v":{"$error":"#N/A"}},null,null,null,null,0]
[null,null,null,null,{"$f":"VLOOKUP(B85,נתונים!C:D,2,FALSE)","v":{"$error":"#N/A"}},null,null,null,null,0]
[null,null,null,null,{"$f":"VLOOKUP(B86,נתונים!C:D,2,FALSE)","v":{"$error":"#N/A"}},null,null,null,null,0]
[null,null,null,null,{"$f":"VLOOKUP(B87,נתונים!C:D,2,FALSE)","v":{"$error":"#N/A"}},null,null,null,null,0]
[null,null,null,null,{"$f":"VLOOKUP(B88,נתונים!C:D,2,FALSE)","v":{"$error":"#N/A"}},null,null,null,null,0]
[null,null,null,null,{"$f":"VLOOKUP(B89,נתונים!C:D,2,FALSE)","v":{"$error":"#N/A"}},null,null,null,null,0]
[null,null,null,null,{"$f":"VLOOKUP(B90,נתונים!C:D,2,FALSE)","v":{"$error":"#N/A"}},null,null,null,null,0]
[null,null,null,null,{"$f":"VLOOKUP(B91,נתונים!C:D,2,FALSE)","v":{"$error":"#N/A"}},null,null,null,null,0]
[null,null,null,null,{"$f":"VLOOKUP(B92,נתונים!C:D,2,FALSE)","v":{"$error":"#N/A"}},null,null,null,null,0]
[null,null,null,null,{"$f":"VLOOKUP(B93,נתונים!C:D,2,FALSE)","v":{"$error":"#N/A"}},null,null,null,null,0]
[null,null,null,null,{"$f":"VLOOKUP(B94,נתונים!C:D,2,FALSE)","v":{"$error":"#N/A"}},null,null,null,null,0]
[null,null,null,null,{"$f":"VLOOKUP(B95,נתונים!C:D,2,FALSE)","v":{"$error":"#N/A"}},null,null,null,null,0]
[null,null,null,null,{"$f":"VLOOKUP(B96,נתונים!C:D,2,FALSE)","v":{"$error":"#N/A"}},null,null,null,null,0]
[null,null,null,null,{"$f":"VLOOKUP(B97,נתונים!C:D,2,FALSE)","v":{"$error":"#N/A"}},null,null,null,null,0]
[null,null,null,null,{"$f":"VLOOKUP(B98,נתונים!C:D,2,FALSE)","v":{"$error":"#N/A"}},null,null,null,null,0]
[null,null,null,null,{"$f":"VLOOKUP(B99,נתונים!C:D,2,FALSE)","v":{"$error":"#N/A"}},null,null,null,null,0]
[null,null,null,null,{"$f":"VLOOKUP(B100,נתונים!C:D,2,FALSE)","v":{"$error":"#N/A"}},null,null,null,null,0]
[null,null,null,null,{"$f":"VLOOKUP(B101,נתונים!C:D,2,FALSE)","v":{"$error":"#N/A"}},null,null,null,null,0]
[null,null,null,null,{"$f":"VLOOKUP(B102,נתונים!C:D,2,FALSE)","v":{"$error":"#N/A"}},null,null,null,null,0]
[null,null,null,null,{"$f":"VLOOKUP(B103,נתונים!C:D,2,FALSE)","v":{"$error":"#N/A"}},null,null,null,null,0]
[null,null,null,null,{"$f":"VLOOKUP(B104,נתונים!C:D,2,FALSE)","v":{"$error":"#N/A"}},null,null,null,null,0]
[null,null,null,null,{"$f":"VLOOKUP(B105,נתונים!C:D,2,FALSE)","v":{"$error":"#N/A"}},null,null,null,null,0]
[null,null,null,null,{"$f":"VLOOKUP(B106,נתונים!C:D,2,FALSE)","v":{"$error":"#N/A"}},null,null,null,null,0]
[null,null,null,null,{"$f":"VLOOKUP(B107,נתונים!C:D,2,FALSE)","v":{"$error":"#N/A"}},null,null,null,null,0]
[null,null,null,null,{"$f":"VLOOKUP(B108,נתונים!C:D,2,FALSE)","v":{"$error":"#N/A"}},null,null,null,null,0]
[null,null,null,null,{"$f":"VLOOKUP(B109,נתונים!C:D,2,FALSE)","v":{"$error":"#N/A"}},null,null,null,null,0]
[null,null,null,null,{"$f":"VLOOKUP(B110,נתונים!C:D,2,FALSE)","v":{"$error":"#N/A"}},null,null,null,null,0]
[null,null,null,null,{"$f":"VLOOKUP(B111,נתונים!C:D,2,FALSE)","v":{"$error":"#N/A"}},null,null,null,null,0]
[null,null,null,null,{"$f":"VLOOKUP(B112,נתונים!C:D,2,FALSE)","v":{"$error":"#N/A"}},null,null,null,null,0]
[null,null,null,null,{"$f":"VLOOKUP(B113,נתונים!C:D,2,FALSE)","v":{"$error":"#N/A"}},null,null,null,null,0]
[null,null,null,null,{"$f":"VLOOKUP(B114,נתונים!C:D,2,FALSE)","v":{"$error":"#N/A"}},null,null,null,null,0]
[null,null,null,null,{"$f":"VLOOKUP(B115,נתונים!C:D,2,FALSE)","v":{"$error":"#N/A"}},null,null,null,null,0]
[null,null,null,null,{"$f":"VLOOKUP(B116,נתונים!C:D,2,FALSE)","v":{"$error":"#N/A"}},null,null,null,null,0]
[null,null,null,null,{"$f":"VLOOKUP(B117,נתונים!C:D,2,FALSE)","v":{"$error":"#N/A"}},null,null,null,null,0]
[null,null,null,null,{"$f":"VLOOKUP(B118,נתונים!C:D,2,FALSE)","v":{"$error":"#N/A"}},null,null,null,null,0]
[null,null,null,null,{"$f":"VLOOKUP(B119,נתונים!C:D,2,FALSE)","v":{"$error":"#N/A"}},null,null,null,null,0]
[null,null,null,null,{"$f":"VLOOKUP(B120,נתונים!C:D,2,FALSE)","v":{"$error":"#N/A"}},null,null,null,null,0]
[null,null,null,null,{"$f":"VLOOKUP(B121,נתונים!C:D,2,FALSE)","v":{"$error":"#N/A"}},null,null,null,null,0]
[null,null,null,null,{"$f":"VLOOKUP(B122,נתונים!C:D,2,FALSE)","v":{"$error":"#N/A"}},null,null,null,null,0]
[null,null,null,null,{"$f":"VLOOKUP(B123,נתונים!C:D,2,FALSE)","v":{"$error":"#N/A"}},null,null,null,null,0]
[null,null,null,null,{"$f":"VLOOKUP(B124,נתונים!C:D,2,FALSE)","v":{"$error":"#N/A"}},null,null,null,null,0]
[null,null,null,null,{"$f":"VLOOKUP(B125,נתונים!C:D,2,FALSE)","v":{"$error":"#N/A"}},null,null,null,null,0]
[null,null,null,null,{"$f":"VLOOKUP(B126,נתונים!C:D,2,FALSE)","v":{"$error":"#N/A"}},null,null,null,null,0]
[null,null,null,null,{"$f":"VLOOKUP(B127,נתונים!C:D,2,FALSE)","v":{"$error":"#N/A"}},null,null,null,null,0]
[null,null,null,null,{"$f":"VLOOKUP(B128,נתונים!C:D,2,FALSE)","v":{"$error":"#N/A"}},null,null,null,null,0]
[null,null,null,null,{"$f":"VLOOKUP(B129,נתונים!C:D,2,FALSE)","v":{"$error":"#N/A"}},null,null,null,null,0]
[null,null,null,null,{"$f":"VLOOKUP(B130,נתונים!C:D,2,FALSE)","v":{"$error":"#N/A"}},null,null,null,null,{"$f":"SUMIF($E:$E,I130,$C:$C)","v":0}]
[null,null,null,null,{"$f":"VLOOKUP(B131,נתונים!C:D,2,FALSE)","v":{"$error":"#N/A"}},null,null,null,null,0]
[null,null,null,null,{"$f":"VLOOKUP(B132,נתונים!C:D,2,FALSE)","v":{"$error":"#N/A"}},null,null,null,null,0]
[null,null,null,null,{"$f":"VLOOKUP(B133,נתונים!C:D,2,FALSE)","v":{"$error":"#N/A"}},null,null,null,null,0]
[null,null,null,null,{"$f":"VLOOKUP(B134,נתונים!C:D,2,FALSE)","v":{"$error":"#N/A"}},null,null,null,null,0]
[null,null,null,null,{"$f":"VLOOKUP(B135,נתונים!C:D,2,FALSE)","v":{"$error":"#N/A"}},null,null,null,null,0]
[null,null,null,null,{"$f":"VLOOKUP(B136,נתונים!C:D,2,FALSE)","v":{"$error":"#N/A"}},null,null,null,null,0]
[null,null,null,null,{"$f":"VLOOKUP(B137,נתונים!C:D,2,FALSE)","v":{"$error":"#N/A"}},null,null,null,null,0]
[null,null,null,null,{"$f":"VLOOKUP(B138,נתונים!C:D,2,FALSE)","v":{"$error":"#N/A"}},null,null,null,null,0]
[null,null,null,null,{"$f":"VLOOKUP(B139,נתונים!C:D,2,FALSE)","v":{"$error":"#N/A"}},null,null,null,null,0]
[null,null,null,null,{"$f":"VLOOKUP(B140,נתונים!C:D,2,FALSE)","v":{"$error":"#N/A"}},null,null,null,null,0]
[null,null,null,null,{"$f":"VLOOKUP(B141,נתונים!C:D,2,FALSE)","v":{"$error":"#N/A"}},null,null,null,null,0]
[null,null,null,null,{"$f":"VLOOKUP(B142,נתונים!C:D,2,FALSE)","v":{"$error":"#N/A"}},null,null,null,null,0]
[null,null,null,null,{"$f":"VLOOKUP(B143,נתונים!C:D,2,FALSE)","v":{"$error":"#N/A"}},null,null,null,null,0]
[null,null,null,null,{"$f":"VLOOKUP(B144,נתונים!C:D,2,FALSE)","v":{"$error":"#N/A"}},null,null,null,null,0]
[null,null,null,null,{"$f":"VLOOKUP(B145,נתונים!C:D,2,FALSE)","v":{"$error":"#N/A"}},null,null,null,null,0]
[null,null,null,null,{"$f":"VLOOKUP(B146,נתונים!C:D,2,FALSE)","v":{"$error":"#N/A"}},null,null,null,null,0]
[null,null,null,null,{"$f":"VLOOKUP(B147,נתונים!C:D,2,FALSE)","v":{"$error":"#N/A"}},null,null,null,null,0]
[null,null,null,null,{"$f":"VLOOKUP(B148,נתונים!C:D,2,FALSE)","v":{"$error":"#N/A"}},null,null,null,null,0]
[null,null,null,null,{"$f":"VLOOKUP(B149,נתונים!C:D,2,FALSE)","v":{"$error":"#N/A"}},null,null,null,null,0]
[null,null,null,null,{"$f":"VLOOKUP(B150,נתונים!C:D,2,FALSE)","v":{"$error":"#N/A"}},null,null,null,null,0]
[null,null,null,null,{"$f":"VLOOKUP(B151,נתונים!C:D,2,FALSE)","v":{"$error":"#N/A"}},null,null,null,null,0]
[null,null,null,null,{"$f":"VLOOKUP(B152,נתונים!C:D,2,FALSE)","v":{"$error":"#N/A"}},null,null,null,null,0]
[null,null,null,null,{"$f":"VLOOKUP(B153,נתונים!C:D,2,FALSE)","v":{"$error":"#N/A"}},null,null,null,null,0]
[null,null,null,null,{"$f":"VLOOKUP(B154,נתונים!C:D,2,FALSE)","v":{"$error":"#N/A"}},null,null,null,null,0]
[null,null,null,null,{"$f":"VLOOKUP(B155,נתונים!C:D,2,FALSE)","v":{"$error":"#N/A"}},null,null,null,null,0]
[null,null,null,null,{"$f":"VLOOKUP(B156,נתונים!C:D,2,FALSE)","v":{"$error":"#N/A"}},null,null,null,null,0]
[null,null,null,null,{"$f":"VLOOKUP(B157,נתונים!C:D,2,FALSE)","v":{"$error":"#N/A"}},null,null,null,null,0]
[null,null,null,null,{"$f":"VLOOKUP(B158,נתונים!C:D,2,FALSE)","v":{"$error":"#N/A"}},null,null,null,null,0]
[null,null,null,null,{"$f":"VLOOKUP(B159,נתונים!C:D,2,FALSE)","v":{"$error":"#N/A"}},null,null,null,null,0]
[null,null,null,null,{"$f":"VLOOKUP(B160,נתונים!C:D,2,FALSE)","v":{"$error":"#N/A"}},null,null,null,null,0]
[null,null,null,null,{"$f":"VLOOKUP(B161,נתונים!C:D,2,FALSE)","v":{"$error":"#N/A"}},null,null,null,null,0]
[null,null,null,null,{"$f":"VLOOKUP(B162,נתונים!C:D,2,FALSE)","v":{"$error":"#N/A"}},null,null,null,null,0]
[null,null,null,null,{"$f":"VLOOKUP(B163,נתונים!C:D,2,FALSE)","v":{"$error":"#N/A"}},null,null,null,null,0]
[null,null,null,null,{"$f":"VLOOKUP(B164,נתונים!C:D,2,FALSE)","v":{"$error":"#N/A"}},null,null,null,null,0]
[null,null,null,null,{"$f":"VLOOKUP(B165,נתונים!C:D,2,FALSE)","v":{"$error":"#N/A"}},null,null,null,null,0]
[null,null,null,null,{"$f":"VLOOKUP(B166,נתונים!C:D,2,FALSE)","v":{"$error":"#N/A"}},null,null,null,null,0]
[null,null,null,null,{"$f":"VLOOKUP(B167,נתונים!C:D,2,FALSE)","v":{"$error":"#N/A"}},null,null,null,null,0]
[null,null,null,null,{"$f":"VLOOKUP(B168,נתונים!C:D,2,FALSE)","v":{"$error":"#N/A"}},null,null,null,null,0]
[null,null,null,null,{"$f":"VLOOKUP(B169,נתונים!C:D,2,FALSE)","v":{"$error":"#N/A"}},null,null,null,null,0]
[null,null,null,null,{"$f":"VLOOKUP(B170,נתונים!C:D,2,FALSE)","v":{"$error":"#N/A"}},null,null,null,null,0]
[null,null,null,null,{"$f":"VLOOKUP(B171,נתונים!C:D,2,FALSE)","v":{"$error":"#N/A"}},null,null,null,null,0]
[null,null,null,null,{"$f":"VLOOKUP(B172,נתונים!C:D,2,FALSE)","v":{"$error":"#N/A"}},null,null,null,null,0]
[null,null,null,null,{"$f":"VLOOKUP(B173,נתונים!C:D,2,FALSE)","v":{"$error":"#N/A"}},null,null,null,null,0]
[null,null,null,null,{"$f":"VLOOKUP(B174,נתונים!C:D,2,FALSE)","v":{"$error":"#N/A"}},null,null,null,null,0]
[null,null,null,null,{"$f":"VLOOKUP(B175,נתונים!C:D,2,FALSE)","v":{"$error":"#N/A"}},null,null,null,null,0]
[null,null,null,null,{"$f":"VLOOKUP(B176,נתונים!C:D,2,FALSE)","v":{"$error":"#N/A"}},null,null,null,null,0]
[null,null,null,null,{"$f":"VLOOKUP(B177,נתונים!C:D,2,FALSE)","v":{"$error":"#N/A"}},null,null,null,null,0]
[null,null,null,null,{"$f":"VLOOKUP(B178,נתונים!C:D,2,FALSE)","v":{"$error":"#N/A"}},null,null,null,null,0]
[null,null,null,null,{"$f":"VLOOKUP(B179,נתונים!C:D,2,FALSE)","v":{"$error":"#N/A"}},null,null,null,null,0]
[null,null,null,null,{"$f":"VLOOKUP(B180,נתונים!C:D,2,FALSE)","v":{"$error":"#N/A"}},null,null,null,null,0]
[null,null,null,null,{"$f":"VLOOKUP(B181,נתונים!C:D,2,FALSE)","v":{"$error":"#N/A"}},null,null,null,null,0]
[null,null,null,null,{"$f":"VLOOKUP(B182,נתונים!C:D,2,FALSE)","v":{"$error":"#N/A"}},null,null,null,null,0]
[null,null,null,null,{"$f":"VLOOKUP(B183,נתונים!C:D,2,FALSE)","v":{"$error":"#N/A"}},null,null,null,null,0]
[null,null,null,null,{"$f":"VLOOKUP(B184,נתונים!C:D,2,FALSE)","v":{"$error":"#N/A"}},null,null,null,null,0]
[null,null,null,null,{"$f":"VLOOKUP(B185,נתונים!C:D,2,FALSE)","v":{"$error":"#N/A"}},null,null,null,null,0]
[null,null,null,null,{"$f":"VLOOKUP(B186,נתונים!C:D,2,FALSE)","v":{"$error":"#N/A"}},null,null,null,null,0]
[null,null,null,null,{"$f":"VLOOKUP(B187,נתונים!C:D,2,FALSE)","v":{"$error":"#N/A"}},null,null,null,null,0]
[null,null,null,null,{"$f":"VLOOKUP(B188,נתונים!C:D,2,FALSE)","v":{"$error":"#N/A"}},null,null,null,null,0]
[null,null,null,null,{"$f":"VLOOKUP(B189,נתונים!C:D,2,FALSE)","v":{"$error":"#N/A"}},null,null,null,null,0]
[null,null,null,null,{"$f":"VLOOKUP(B190,נתונים!C:D,2,FALSE)","v":{"$error":"#N/A"}},null,null,null,null,0]
[null,null,null,null,{"$f":"VLOOKUP(B191,נתונים!C:D,2,FALSE)","v":{"$error":"#N/A"}},null,null,null,null,0]
[null,null,null,null,{"$f":"VLOOKUP(B192,נתונים!C:D,2,FALSE)","v":{"$error":"#N/A"}},null,null,null,null,0]
[null,null,null,null,{"$f":"VLOOKUP(B193,נתונים!C:D,2,FALSE)","v":{"$error":"#N/A"}},null,null,null,null,0]
[null,null,null,null,{"$f":"VLOOKUP(B194,נתונים!C:D,2,FALSE)","v":{"$error":"#N/A"}},null,null,null,null,{"$f":"SUMIF($E:$E,I194,$C:$C)","v":0}]
[null,null,null,null,{"$f":"VLOOKUP(B195,נתונים!C:D,2,FALSE)","v":{"$error":"#N/A"}},null,null,null,null,0]
[null,null,null,null,{"$f":"VLOOKUP(B196,נתונים!C:D,2,FALSE)","v":{"$error":"#N/A"}},null,null,null,null,0]
[null,null,null,null,{"$f":"VLOOKUP(B197,נתונים!C:D,2,FALSE)","v":{"$error":"#N/A"}},null,null,null,null,0]
[null,null,null,null,{"$f":"VLOOKUP(B198,נתונים!C:D,2,FALSE)","v":{"$error":"#N/A"}},null,null,null,null,0]
[null,null,null,null,{"$f":"VLOOKUP(B199,נתונים!C:D,2,FALSE)","v":{"$error":"#N/A"}},null,null,null,null,0]
[null,null,null,null,{"$f":"VLOOKUP(B200,נתונים!C:D,2,FALSE)","v":{"$error":"#N/A"}},null,null,null,null,0]
[null,null,null,null,{"$f":"VLOOKUP(B201,נתונים!C:D,2,FALSE)","v":{"$error":"#N/A"}},null,null,null,null,0]
[null,null,null,null,{"$f":"VLOOKUP(B202,נתונים!C:D,2,FALSE)","v":{"$error":"#N/A"}},null,null,null,null,0]
[null,null,null,null,{"$f":"VLOOKUP(B203,נתונים!C:D,2,FALSE)","v":{"$error":"#N/A"}},null,null,null,null,0]
[null,null,null,null,{"$f":"VLOOKUP(B204,נתונים!C:D,2,FALSE)","v":{"$error":"#N/A"}},null,null,null,null,0]
[null,null,null,null,{"$f":"VLOOKUP(B205,נתונים!C:D,2,FALSE)","v":{"$error":"#N/A"}},null,null,null,null,0]
[null,null,null,null,{"$f":"VLOOKUP(B206,נתונים!C:D,2,FALSE)","v":{"$error":"#N/A"}},null,null,null,null,0]
[null,null,null,null,{"$f":"VLOOKUP(B207,נתונים!C:D,2,FALSE)","v":{"$error":"#N/A"}},null,null,null,null,0]
[null,null,null,null,{"$f":"VLOOKUP(B208,נתונים!C:D,2,FALSE)","v":{"$error":"#N/A"}},null,null,null,null,0]
[null,null,null,null,{"$f":"VLOOKUP(B209,נתונים!C:D,2,FALSE)","v":{"$error":"#N/A"}},null,null,null,null,0]
[null,null,null,null,{"$f":"VLOOKUP(B210,נתונים!C:D,2,FALSE)","v":{"$error":"#N/A"}},null,null,null,null,0]
[null,null,null,null,{"$f":"VLOOKUP(B211,נתונים!C:D,2,FALSE)","v":{"$error":"#N/A"}},null,null,null,null,0]
[null,null,null,null,{"$f":"VLOOKUP(B212,נתונים!C:D,2,FALSE)","v":{"$error":"#N/A"}},null,null,null,null,0]
[null,null,null,null,{"$f":"VLOOKUP(B213,נתונים!C:D,2,FALSE)","v":{"$error":"#N/A"}},null,null,null,null,0]
[null,null,null,null,{"$f":"VLOOKUP(B214,נתונים!C:D,2,FALSE)","v":{"$error":"#N/A"}},null,null,null,null,0]
[null,null,null,null,{"$f":"VLOOKUP(B215,נתונים!C:D,2,FALSE)","v":{"$error":"#N/A"}},null,null,null,null,0]
[null,null,null,null,{"$f":"VLOOKUP(B216,נתונים!C:D,2,FALSE)","v":{"$error":"#N/A"}},null,null,null,null,0]
[null,null,null,null,{"$f":"VLOOKUP(B217,נתונים!C:D,2,FALSE)","v":{"$error":"#N/A"}},null,null,null,null,0]
[null,null,null,null,{"$f":"VLOOKUP(B218,נתונים!C:D,2,FALSE)","v":{"$error":"#N/A"}},null,null,null,null,0]
[null,null,null,null,{"$f":"VLOOKUP(B219,נתונים!C:D,2,FALSE)","v":{"$error":"#N/A"}},null,null,null,null,0]
[null,null,null,null,{"$f":"VLOOKUP(B220,נתונים!C:D,2,FALSE)","v":{"$error":"#N/A"}},null,null,null,null,0]
[null,null,null,null,{"$f":"VLOOKUP(B221,נתונים!C:D,2,FALSE)","v":{"$error":"#N/A"}},null,null,null,null,0]
[null,null,null,null,{"$f":"VLOOKUP(B222,נתונים!C:D,2,FALSE)","v":{"$error":"#N/A"}},null,null,null,null,0]
[null,null,null,null,{"$f":"VLOOKUP(B223,נתונים!C:D,2,FALSE)","v":{"$error":"#N/A"}},null,null,null,null,0]
[null,null,null,null,{"$f":"VLOOKUP(B224,נתונים!C:D,2,FALSE)","v":{"$error":"#N/A"}},null,null,null,null,0]
[null,null,null,null,{"$f":"VLOOKUP(B225,נתונים!C:D,2,FALSE)","v":{"$error":"#N/A"}},null,null,null,null,0]
[null,null,null,null,{"$f":"VLOOKUP(B226,נתונים!C:D,2,FALSE)","v":{"$error":"#N/A"}},null,null,null,null,0]
[null,null,null,null,{"$f":"VLOOKUP(B227,נתונים!C:D,2,FALSE)","v":{"$error":"#N/A"}},null,null,null,null,0]
[null,null,null,null,{"$f":"VLOOKUP(B228,נתונים!C:D,2,FALSE)","v":{"$error":"#N/A"}},null,null,null,null,0]
[null,null,null,null,{"$f":"VLOOKUP(B229,נתונים!C:D,2,FALSE)","v":{"$error":"#N/A"}},null,null,null,null,0]
[null,null,null,null,{"$f":"VLOOKUP(B230,נתונים!C:D,2,FALSE)","v":{"$error":"#N/A"}},null,null,null,null,0]
[null,null,null,null,{"$f":"VLOOKUP(B231,נתונים!C:D,2,FALSE)","v":{"$error":"#N/A"}},null,null,null,null,0]
[null,null,null,null,{"$f":"VLOOKUP(B232,נתונים!C:D,2,FALSE)","v":{"$error":"#N/A"}},null,null,null,null,0]
[null,null,null,null,{"$f":"VLOOKUP(B233,נתונים!C:D,2,FALSE)","v":{"$error":"#N/A"}},null,null,null,null,0]
[null,null,null,null,{"$f":"VLOOKUP(B234,נתונים!C:D,2,FALSE)","v":{"$error":"#N/A"}},null,null,null,null,0]
[null,null,null,null,{"$f":"VLOOKUP(B235,נתונים!C:D,2,FALSE)","v":{"$error":"#N/A"}},null,null,null,null,0]
[null,null,null,null,{"$f":"VLOOKUP(B236,נתונים!C:D,2,FALSE)","v":{"$error":"#N/A"}},null,null,null,null,0]
[null,null,null,null,{"$f":"VLOOKUP(B237,נתונים!C:D,2,FALSE)","v":{"$error":"#N/A"}},null,null,null,null,0]
[null,null,null,null,{"$f":"VLOOKUP(B238,נתונים!C:D,2,FALSE)","v":{"$error":"#N/A"}},null,null,null,null,0]
[null,null,null,null,{"$f":"VLOOKUP(B239,נתונים!C:D,2,FALSE)","v":{"$error":"#N/A"}},null,null,null,null,0]
[null,null,null,null,{"$f":"VLOOKUP(B240,נתונים!C:D,2,FALSE)","v":{"$error":"#N/A"}},null,null,null,null,0]
[null,null,null,null,{"$f":"VLOOKUP(B241,נתונים!C:D,2,FALSE)","v":{"$error":"#N/A"}},null,null,null,null,0]
[null,null,null,null,{"$f":"VLOOKUP(B242,נתונים!C:D,2,FALSE)","v":{"$error":"#N/A"}},null,null,null,null,0]
[null,null,null,null,{"$f":"VLOOKUP(B243,נתונים!C:D,2,FALSE)","v":{"$error":"#N/A"}},null,null,null,null,0]
[null,null,null,null,{"$f":"VLOOKUP(B244,נתונים!C:D,2,FALSE)","v":{"$error":"#N/A"}},null,null,null,null,0]
[null,null,null,null,{"$f":"VLOOKUP(B245,נתונים!C:D,2,FALSE)","v":{"$error":"#N/A"}},null,null,null,null,0]
[null,null,null,null,{"$f":"VLOOKUP(B246,נתונים!C:D,2,FALSE)","v":{"$error":"#N/A"}},null,null,null,null,0]
[null,null,null,null,{"$f":"VLOOKUP(B247,נתונים!C:D,2,FALSE)","v":{"$error":"#N/A"}},null,null,null,null,0]
[null,null,null,null,{"$f":"VLOOKUP(B248,נתונים!C:D,2,FALSE)","v":{"$error":"#N/A"}},null,null,null,null,0]
[null,null,null,null,{"$f":"VLOOKUP(B249,נתונים!C:D,2,FALSE)","v":{"$error":"#N/A"}},null,null,null,null,0]
[null,null,null,null,{"$f":"VLOOKUP(B250,נתונים!C:D,2,FALSE)","v":{"$error":"#N/A"}},null,null,null,null,0]
[null,null,null,null,{"$f":"VLOOKUP(B251,נתונים!C:D,2,FALSE)","v":{"$error":"#N/A"}},null,null,null,null,0]
[null,null,null,null,{"$f":"VLOOKUP(B252,נתונים!C:D,2,FALSE)","v":{"$error":"#N/A"}},null,null,null,null,0]
[null,null,null,null,{"$f":"VLOOKUP(B253,נתונים!C:D,2,FALSE)","v":{"$error":"#N/A"}},null,null,null,null,0]
[null,null,null,null,{"$f":"VLOOKUP(B254,נתונים!C:D,2,FALSE)","v":{"$error":"#N/A"}},null,null,null,null,0]
[null,null,null,null,{"$f":"VLOOKUP(B255,נתונים!C:D,2,FALSE)","v":{"$error":"#N/A"}},null,null,null,null,0]
[null,null,null,null,{"$f":"VLOOKUP(B256,נתונים!C:D,2,FALSE)","v":{"$error":"#N/A"}},null,null,null,null,0]
[null,null,null,null,{"$f":"VLOOKUP(B257,נתונים!C:D,2,FALSE)","v":{"$error":"#N/A"}},null,null,null,null,0]
[null,null,null,null,{"$f":"VLOOKUP(B258,נתונים!C:D,2,FALSE)","v":{"$error":"#N/A"}},null,null,null,null,{"$f":"SUMIF($E:$E,I258,$C:$C)","v":0}]
[null,null,null,null,{"$f":"VLOOKUP(B259,נתונים!C:D,2,FALSE)","v":{"$error":"#N/A"}},null,null,null,null,0]
[null,null,null,null,{"$f":"VLOOKUP(B260,נתונים!C:D,2,FALSE)","v":{"$error":"#N/A"}},null,null,null,null,0]
[null,null,null,null,{"$f":"VLOOKUP(B261,נתונים!C:D,2,FALSE)","v":{"$error":"#N/A"}},null,null,null,null,0]
[null,null,null,null,{"$f":"VLOOKUP(B262,נתונים!C:D,2,FALSE)","v":{"$error":"#N/A"}},null,null,null,null,0]
[null,null,null,null,{"$f":"VLOOKUP(B263,נתונים!C:D,2,FALSE)","v":{"$error":"#N/A"}},null,null,null,null,0]
[null,null,null,null,{"$f":"VLOOKUP(B264,נתונים!C:D,2,FALSE)","v":{"$error":"#N/A"}},null,null,null,null,0]
[null,null,null,null,{"$f":"VLOOKUP(B265,נתונים!C:D,2,FALSE)","v":{"$error":"#N/A"}},null,null,null,null,0]
[null,null,null,null,{"$f":"VLOOKUP(B266,נתונים!C:D,2,FALSE)","v":{"$error":"#N/A"}},null,null,null,null,0]
[null,null,null,null,{"$f":"VLOOKUP(B267,נתונים!C:D,2,FALSE)","v":{"$error":"#N/A"}},null,null,null,null,0]
[null,null,null,null,{"$f":"VLOOKUP(B268,נתונים!C:D,2,FALSE)","v":{"$error":"#N/A"}},null,null,null,null,0]
[null,null,null,null,{"$f":"VLOOKUP(B269,נתונים!C:D,2,FALSE)","v":{"$error":"#N/A"}},null,null,null,null,0]
[null,null,null,null,{"$f":"VLOOKUP(B270,נתונים!C:D,2,FALSE)","v":{"$error":"#N/A"}},null,null,null,null,0]
[null,null,null,null,{"$f":"VLOOKUP(B271,נתונים!C:D,2,FALSE)","v":{"$error":"#N/A"}},null,null,null,null,0]
[null,null,null,null,{"$f":"VLOOKUP(B272,נתונים!C:D,2,FALSE)","v":{"$error":"#N/A"}},null,null,null,null,0]
[null,null,null,null,{"$f":"VLOOKUP(B273,נתונים!C:D,2,FALSE)","v":{"$error":"#N/A"}},null,null,null,null,0]
[null,null,null,null,{"$f":"VLOOKUP(B274,נתונים!C:D,2,FALSE)","v":{"$error":"#N/A"}},null,null,null,null,0]
[null,null,null,null,{"$f":"VLOOKUP(B275,נתונים!C:D,2,FALSE)","v":{"$error":"#N/A"}},null,null,null,null,0]
[null,null,null,null,{"$f":"VLOOKUP(B276,נתונים!C:D,2,FALSE)","v":{"$error":"#N/A"}},null,null,null,null,0]
[null,null,null,null,{"$f":"VLOOKUP(B277,נתונים!C:D,2,FALSE)","v":{"$error":"#N/A"}},null,null,null,null,0]
[null,null,null,null,{"$f":"VLOOKUP(B278,נתונים!C:D,2,FALSE)","v":{"$error":"#N/A"}},null,null,null,null,0]
[null,null,null,null,{"$f":"VLOOKUP(B279,נתונים!C:D,2,FALSE)","v":{"$error":"#N/A"}},null,null,null,null,0]
[null,null,null,null,{"$f":"VLOOKUP(B280,נתונים!C:D,2,FALSE)","v":{"$error":"#N/A"}},null,null,null,null,0]
[null,null,null,null,{"$f":"VLOOKUP(B281,נתונים!C:D,2,FALSE)","v":{"$error":"#N/A"}},null,null,null,null,0]
[null,null,null,null,{"$f":"VLOOKUP(B282,נתונים!C:D,2,FALSE)","v":{"$error":"#N/A"}},null,null,null,null,0]
[null,null,null,null,{"$f":"VLOOKUP(B283,נתונים!C:D,2,FALSE)","v":{"$error":"#N/A"}},null,null,null,null,0]
[null,null,null,null,{"$f":"VLOOKUP(B284,נתונים!C:D,2,FALSE)","v":{"$error":"#N/A"}},null,null,null,null,0]
[null,null,null,null,{"$f":"VLOOKUP(B285,נתונים!C:D,2,FALSE)","v":{"$error":"#N/A"}},null,null,null,null,0]
[null,null,null,null,{"$f":"VLOOKUP(B286,נתונים!C:D,2,FALSE)","v":{"$error":"#N/A"}},null,null,null,null,0]
[null,null,null,null,{"$f":"VLOOKUP(B287,נתונים!C:D,2,FALSE)","v":{"$error":"#N/A"}},null,null,null,null,0]
[null,null,null,null,{"$f":"VLOOKUP(B288,נתונים!C:D,2,FALSE)","v":{"$error":"#N/A"}},null,null,null,null,0]
[null,null,null,null,{"$f":"VLOOKUP(B289,נתונים!C:D,2,FALSE)","v":{"$error":"#N/A"}},null,null,null,null,0]
[null,null,null,null,{"$f":"VLOOKUP(B290,נתונים!C:D,2,FALSE)","v":{"$error":"#N/A"}},null,null,null,null,0]
[null,null,null,null,{"$f":"VLOOKUP(B291,נתונים!C:D,2,FALSE)","v":{"$error":"#N/A"}},null,null,null,null,0]
[null,null,null,null,{"$f":"VLOOKUP(B292,נתונים!C:D,2,FALSE)","v":{"$error":"#N/A"}},null,null,null,null,0]
[null,null,null,null,{"$f":"VLOOKUP(B293,נתונים!C:D,2,FALSE)","v":{"$error":"#N/A"}},null,null,null,null,0]
[null,null,null,null,{"$f":"VLOOKUP(B294,נתונים!C:D,2,FALSE)","v":{"$error":"#N/A"}},null,null,null,null,0]
[null,null,null,null,{"$f":"VLOOKUP(B295,נתונים!C:D,2,FALSE)","v":{"$error":"#N/A"}},null,null,null,null,0]
[null,null,null,null,{"$f":"VLOOKUP(B296,נתונים!C:D,2,FALSE)","v":{"$error":"#N/A"}},null,null,null,null,0]
[null,null,null,null,{"$f":"VLOOKUP(B297,נתונים!C:D,2,FALSE)","v":{"$error":"#N/A"}},null,null,null,null,0]
[null,null,null,null,{"$f":"VLOOKUP(B298,נתונים!C:D,2,FALSE)","v":{"$error":"#N/A"}},null,null,null,null,0]
[null,null,null,null,{"$f":"VLOOKUP(B299,נתונים!C:D,2,FALSE)","v":{"$error":"#N/A"}},null,null,null,null,0]
[null,null,null,null,{"$f":"VLOOKUP(B300,נתונים!C:D,2,FALSE)","v":{"$error":"#N/A"}},null,null,null,null,0]
[null,null,null,null,{"$f":"VLOOKUP(B301,נתונים!C:D,2,FALSE)","v":{"$error":"#N/A"}},null,null,null,null,0]
[null,null,null,null,{"$f":"VLOOKUP(B302,נתונים!C:D,2,FALSE)","v":{"$error":"#N/A"}},null,null,null,null,0]
[null,null,null,null,{"$f":"VLOOKUP(B303,נתונים!C:D,2,FALSE)","v":{"$error":"#N/A"}},null,null,null,null,0]
[null,null,null,null,{"$f":"VLOOKUP(B304,נתונים!C:D,2,FALSE)","v":{"$error":"#N/A"}},null,null,null,null,0]
[null,null,null,null,{"$f":"VLOOKUP(B305,נתונים!C:D,2,FALSE)","v":{"$error":"#N/A"}},null,null,null,null,0]
[null,null,null,null,{"$f":"VLOOKUP(B306,נתונים!C:D,2,FALSE)","v":{"$error":"#N/A"}},null,null,null,null,0]
[null,null,null,null,{"$f":"VLOOKUP(B307,נתונים!C:D,2,FALSE)","v":{"$error":"#N/A"}},null,null,null,null,0]
[null,null,null,null,{"$f":"VLOOKUP(B308,נתונים!C:D,2,FALSE)","v":{"$error":"#N/A"}},null,null,null,null,0]
[null,null,null,null,{"$f":"VLOOKUP(B309,נתונים!C:D,2,FALSE)","v":{"$error":"#N/A"}},null,null,null,null,0]
[null,null,null,null,{"$f":"VLOOKUP(B310,נתונים!C:D,2,FALSE)","v":{"$error":"#N/A"}},null,null,null,null,0]
[null,null,null,null,{"$f":"VLOOKUP(B311,נתונים!C:D,2,FALSE)","v":{"$error":"#N/A"}},null,null,null,null,0]
[null,null,null,null,{"$f":"VLOOKUP(B312,נתונים!C:D,2,FALSE)","v":{"$error":"#N/A"}},null,null,null,null,0]
[null,null,null,null,{"$f":"VLOOKUP(B313,נתונים!C:D,2,FALSE)","v":{"$error":"#N/A"}},null,null,null,null,0]
[null,null,null,null,{"$f":"VLOOKUP(B314,נתונים!C:D,2,FALSE)","v":{"$error":"#N/A"}},null,null,null,null,0]
[null,null,null,null,{"$f":"VLOOKUP(B315,נתונים!C:D,2,FALSE)","v":{"$error":"#N/A"}},null,null,null,null,0]
[null,null,null,null,{"$f":"VLOOKUP(B316,נתונים!C:D,2,FALSE)","v":{"$error":"#N/A"}},null,null,null,null,0]
[null,null,null,null,{"$f":"VLOOKUP(B317,נתונים!C:D,2,FALSE)","v":{"$error":"#N/A"}},null,null,null,null,0]
[null,null,null,null,{"$f":"VLOOKUP(B318,נתונים!C:D,2,FALSE)","v":{"$error":"#N/A"}},null,null,null,null,0]
[null,null,null,null,{"$f":"VLOOKUP(B319,נתונים!C:D,2,FALSE)","v":{"$error":"#N/A"}},null,null,null,null,0]
[null,null,null,null,{"$f":"VLOOKUP(B320,נתונים!C:D,2,FALSE)","v":{"$error":"#N/A"}},null,null,null,null,0]
[null,null,null,null,{"$f":"VLOOKUP(B321,נתונים!C:D,2,FALSE)","v":{"$error":"#N/A"}},null,null,null,null,0]
[null,null,null,null,{"$f":"VLOOKUP(B322,נתונים!C:D,2,FALSE)","v":{"$error":"#N/A"}},null,null,null,null,{"$f":"SUMIF($E:$E,I322,$C:$C)","v":0}]
[null,null,null,null,{"$f":"VLOOKUP(B323,נתונים!C:D,2,FALSE)","v":{"$error":"#N/A"}},null,null,null,null,0]
[null,null,null,null,{"$f":"VLOOKUP(B324,נתונים!C:D,2,FALSE)","v":{"$error":"#N/A"}},null,null,null,null,0]
[null,null,null,null,{"$f":"VLOOKUP(B325,נתונים!C:D,2,FALSE)","v":{"$error":"#N/A"}},null,null,null,null,0]
[null,null,null,null,{"$f":"VLOOKUP(B326,נתונים!C:D,2,FALSE)","v":{"$error":"#N/A"}},null,null,null,null,0]
[null,null,null,null,{"$f":"VLOOKUP(B327,נתונים!C:D,2,FALSE)","v":{"$error":"#N/A"}},null,null,null,null,0]
[null,null,null,null,{"$f":"VLOOKUP(B328,נתונים!C:D,2,FALSE)","v":{"$error":"#N/A"}},null,null,null,null,0]
[null,null,null,null,{"$f":"VLOOKUP(B329,נתונים!C:D,2,FALSE)","v":{"$error":"#N/A"}},null,null,null,null,0]
[null,null,null,null,{"$f":"VLOOKUP(B330,נתונים!C:D,2,FALSE)","v":{"$error":"#N/A"}},null,null,null,null,0]
[null,null,null,null,{"$f":"VLOOKUP(B331,נתונים!C:D,2,FALSE)","v":{"$error":"#N/A"}},null,null,null,null,0]
[null,null,null,null,{"$f":"VLOOKUP(B332,נתונים!C:D,2,FALSE)","v":{"$error":"#N/A"}},null,null,null,null,0]
[null,null,null,null,{"$f":"VLOOKUP(B333,נתונים!C:D,2,FALSE)","v":{"$error":"#N/A"}},null,null,null,null,0]
[null,null,null,null,{"$f":"VLOOKUP(B334,נתונים!C:D,2,FALSE)","v":{"$error":"#N/A"}},null,null,null,null,0]
[null,null,null,null,{"$f":"VLOOKUP(B335,נתונים!C:D,2,FALSE)","v":{"$error":"#N/A"}},null,null,null,null,0]
[null,null,null,null,{"$f":"VLOOKUP(B336,נתונים!C:D,2,FALSE)","v":{"$error":"#N/A"}},null,null,null,null,0]
[null,null,null,null,{"$f":"VLOOKUP(B337,נתונים!C:D,2,FALSE)","v":{"$error":"#N/A"}},null,null,null,null,0]
[null,null,null,null,{"$f":"VLOOKUP(B338,נתונים!C:D,2,FALSE)","v":{"$error":"#N/A"}},null,null,null,null,0]
[null,null,null,null,{"$f":"VLOOKUP(B339,נתונים!C:D,2,FALSE)","v":{"$error":"#N/A"}},null,null,null,null,0]
[null,null,null,null,{"$f":"VLOOKUP(B340,נתונים!C:D,2,FALSE)","v":{"$error":"#N/A"}},null,null,null,null,0]
[null,null,null,null,{"$f":"VLOOKUP(B341,נתונים!C:D,2,FALSE)","v":{"$error":"#N/A"}},null,null,null,null,0]
[null,null,null,null,{"$f":"VLOOKUP(B342,נתונים!C:D,2,FALSE)","v":{"$error":"#N/A"}},null,null,null,null,0]
[null,null,null,null,{"$f":"VLOOKUP(B343,נתונים!C:D,2,FALSE)","v":{"$error":"#N/A"}},null,null,null,null,0]
[null,null,null,null,{"$f":"VLOOKUP(B344,נתונים!C:D,2,FALSE)","v":{"$error":"#N/A"}},null,null,null,null,0]
[null,null,null,null,{"$f":"VLOOKUP(B345,נתונים!C:D,2,FALSE)","v":{"$error":"#N/A"}},null,null,null,null,0]
[null,null,null,null,{"$f":"VLOOKUP(B346,נתונים!C:D,2,FALSE)","v":{"$error":"#N/A"}},null,null,null,null,0]
[null,null,null,null,{"$f":"VLOOKUP(B347,נתונים!C:D,2,FALSE)","v":{"$error":"#N/A"}},null,null,null,null,0]
[null,null,null,null,{"$f":"VLOOKUP(B348,נתונים!C:D,2,FALSE)","v":{"$error":"#N/A"}},null,null,null,null,0]
[null,null,null,null,{"$f":"VLOOKUP(B349,נתונים!C:D,2,FALSE)","v":{"$error":"#N/A"}},null,null,null,null,0]
[null,null,null,null,{"$f":"VLOOKUP(B350,נתונים!C:D,2,FALSE)","v":{"$error":"#N/A"}},null,null,null,null,0]
[null,null,null,null,{"$f":"VLOOKUP(B351,נתונים!C:D,2,FALSE)","v":{"$error":"#N/A"}},null,null,null,null,0]
[null,null,null,null,{"$f":"VLOOKUP(B352,נתונים!C:D,2,FALSE)","v":{"$error":"#N/A"}},null,null,null,null,0]
[null,null,null,null,{"$f":"VLOOKUP(B353,נתונים!C:D,2,FALSE)","v":{"$error":"#N/A"}},null,null,null,null,0]
[null,null,null,null,{"$f":"VLOOKUP(B354,נתונים!C:D,2,FALSE)","v":{"$error":"#N/A"}},null,null,null,null,0]
[null,null,null,null,{"$f":"VLOOKUP(B355,נתונים!C:D,2,FALSE)","v":{"$error":"#N/A"}},null,null,null,null,0]
[null,null,null,null,{"$f":"VLOOKUP(B356,נתונים!C:D,2,FALSE)","v":{"$error":"#N/A"}},null,null,null,null,0]
[null,null,null,null,{"$f":"VLOOKUP(B357,נתונים!C:D,2,FALSE)","v":{"$error":"#N/A"}},null,null,null,null,0]
[null,null,null,null,{"$f":"VLOOKUP(B358,נתונים!C:D,2,FALSE)","v":{"$error":"#N/A"}},null,null,null,null,0]
[null,null,null,null,{"$f":"VLOOKUP(B359,נתונים!C:D,2,FALSE)","v":{"$error":"#N/A"}},null,null,null,null,0]
[null,null,null,null,{"$f":"VLOOKUP(B360,נתונים!C:D,2,FALSE)","v":{"$error":"#N/A"}},null,null,null,null,0]
[null,null,null,null,{"$f":"VLOOKUP(B361,נתונים!C:D,2,FALSE)","v":{"$error":"#N/A"}},null,null,null,null,0]
[null,null,null,null,{"$f":"VLOOKUP(B362,נתונים!C:D,2,FALSE)","v":{"$error":"#N/A"}},null,null,null,null,0]
[null,null,null,null,{"$f":"VLOOKUP(B363,נתונים!C:D,2,FALSE)","v":{"$error":"#N/A"}},null,null,null,null,0]
[null,null,null,null,{"$f":"VLOOKUP(B364,נתונים!C:D,2,FALSE)","v":{"$error":"#N/A"}},null,null,null,null,0]
[null,null,null,null,{"$f":"VLOOKUP(B365,נתונים!C:D,2,FALSE)","v":{"$error":"#N/A"}},null,null,null,null,0]
[null,null,null,null,{"$f":"VLOOKUP(B366,נתונים!C:D,2,FALSE)","v":{"$error":"#N/A"}},null,null,null,null,0]
[null,null,null,null,{"$f":"VLOOKUP(B367,נתונים!C:D,2,FALSE)","v":{"$error":"#N/A"}},null,null,null,null,0]
[null,null,null,null,{"$f":"VLOOKUP(B368,נתונים!C:D,2,FALSE)","v":{"$error":"#N/A"}},null,null,null,null,0]
[null,null,null,null,{"$f":"VLOOKUP(B369,נתונים!C:D,2,FALSE)","v":{"$error":"#N/A"}},null,null,null,null,0]
[null,null,null,null,{"$f":"VLOOKUP(B370,נתונים!C:D,2,FALSE)","v":{"$error":"#N/A"}},null,null,null,null,0]
[null,null,null,null,{"$f":"VLOOKUP(B371,נתונים!C:D,2,FALSE)","v":{"$error":"#N/A"}},null,null,null,null,0]
[null,null,null,null,{"$f":"VLOOKUP(B372,נתונים!C:D,2,FALSE)","v":{"$error":"#N/A"}},null,null,null,null,0]
[null,null,null,null,{"$f":"VLOOKUP(B373,נתונים!C:D,2,FALSE)","v":{"$error":"#N/A"}},null,null,null,null,0]
[null,null,null,null,{"$f":"VLOOKUP(B374,נתונים!C:D,2,FALSE)","v":{"$error":"#N/A"}},null,null,null,null,0]

{"sheet":"נתונים","index":1,"n_rows":8,"n_cols":4,"rows_kept":8,"cut":false,"hidden":false,"merged":[]}
[]
[]
[]
[]
[null,null,"שם עסק (כפי שמופיע בפירוט אשראי)","קטגוריה"]
[null,null,"רמי לוי","קניות"]
[null,null,"ראושר עד","קניות"]
[null,null,"נעלי שלמה","ביגוד"]